Cogmind - Beta 9.3 @@@ ROGUE MODE // 2019.12.18 @ 23:02:43 // Winter2019/RPGLIKE Player: eldritch Result: Destroyed by exploding Plasma Injector Performance ------------- Evolutions (0) 0 Regions Visited (2) 400 Robots Destroyed (31) 155 Value Destroyed (668) 668 Prototype IDs (0) 0 Alien Tech Used (0) 0 Bonus (0) 0 TOTAL SCORE: 1223 Bonus ------- None Cogmind --------- Core Integrity 0/600 Matter 236/300 Energy 160/160 System Corruption 0% Temperature Cool (36) Movement Flying (37) Location -10/Mines Parts ------- > --- POWER (1) -------- Light Nuclear Core > --- PROPULSION (2) --- Flight Unit Flight Unit > --- UTILITY (2) ------ Signal Interpreter Improved Terrain Scanner > --- WEAPON (2) ------- Assault Rifle Assault Rifle > --- INVENTORY (2) ---- Large Battery (300) Grenade Launcher Peak State ------------ > --- POWER ------------ Light Nuclear Core > --- PROPULSION ------- Flight Unit Flight Unit > --- UTILITY ---------- Signal Interpreter Improved Terrain Scanner > --- WEAPON ----------- Assault Rifle Assault Rifle > --- INVENTORY -------- Large Battery [Rating: 10] Favorites ----------- Power Light Nuclear Core Engine Light Ion Engine Power Core Light Nuclear Core Propulsion Flight Unit Leg Aluminum Leg Flight Unit Flight Unit Utility Improved Terrain Scanner Device Improved Terrain Scanner Processor Signal Interpreter Weapon Assault Rifle Ballistic Gun Assault Rifle Launcher Grenade Launcher Build | -11 -10 -10 ------- Run | Scr Mat Min Slots Evolved 3 | 2 1 . Power . | . . . Propulsion 1 | . 1 . Utility 1 | 1 . . Weapon 1 | 1 . . Parts Attached 22 | 2 16 4 Power 2 | . 2 . Engine . | . . . Core 2 | . 2 . Reactor . | . . . Propulsion 8 | . 6 2 Treads . | . . . Leg . | . . . Wheel . | . . . Hover . | . . . Flight 8 | . 6 2 Utility 4 | 1 3 . Device 3 | 1 2 . Storage . | . . . Processor 1 | . 1 . Hackware . | . . . Protection . | . . . Artifact . | . . . Weapon 8 | 1 5 2 Energy Gun . | . . . Energy Cannon . | . . . Ballistic Gun 7 | 1 5 1 Ballistic Cannon . | . . . Launcher 1 | . . 1 Special Weapon . | . . . Impact Weapon . | . . . Slashing Weapon . | . . . Piercing Weapon . | . . . Special Melee Weapon . | . . . Unidentified Prototypes . | . . . Parts Lost . | . . . Power . | . . . Propulsion . | . . . Utility . | . . . Weapon . | . . . Highest Loss Streak . | . . . Average Slot Usage (%) 94 | . 90 100 Engine 2 | . 3 . Core 12 | . 12 14 Flight 20 | . 15 28 Device 14 | . 15 14 Processor 11 | . 9 14 Ballistic Gun 30 | . 31 27 Naked Turns . | . . . Heaviest Build 11 | 8 10 11 Greatest Support 18 | 13 18 18 Greatest Overweight (x) . | . . . Average Overweight (x) . | . . . Largest Inventory Capacity 2 | 2 2 2 Average Capacity 1 | . 2 2 Most Carried 2 | . 2 2 Average Carried 1 | . 1 2 Final Capacity 2 | 2 2 2 Final Carried 2 | . 2 2 Class Distribution -------------------- 56% | Mutant 43% | Scavenger-Mutant Dominant Class ---------------- Mutant | -10/Materials Scavenger-Mutant | -10/Mines Resources | -11 -10 -10 ----------- Run | Scr Mat Min Matter Collected 990 | 231 456 303 Remotely . | . . . Salvage Created 1054 | 102 734 218 Parts 61 | 7 40 14 Haulers Intercepted 1 | . 1 . Recyclers Shooed . | . . . Parts Field Recycled . | . . . Retrieved Matter . | . . . Parts Self-Destructed . | . . . Prevented . | . . . Kills | -11 -10 -10 ------- Run | Scr Mat Min Combat Hostiles Destroyed 21 | . 11 10 Guns 19 | . 11 8 AOE 2 | . . 2 Classes Destroyed 8 | 2 6 . Worker 1 | . 1 . Tunneler 3 | 1 2 . Hauler 1 | . 1 . Recycler 1 | 1 . . Operator 1 | . 1 . Watcher 3 | . 3 . Swarmer 8 | . 2 6 Grunt 13 | . 9 4 Best Kill Streak 3 | 2 3 3 Combat Bots Only 3 | . 3 3 Max Kills in Single Turn 2 | 1 1 2 Gunslinging . | . . . Exploded 2 | . . 2 Melee . | . . . Uniques/NPCs Destroyed . | . . . Combat | -11 -10 -10 -------- Run | Scr Mat Min Damage Taken 1160 | . 404 756 Core 929 | . 318 611 Absorbed by Shields . | . . . Redirected to Core 747 | . 269 478 Core Remaining (%) 100 | 100 . . Volleys Fired 108 | 7 56 45 Largest 2 | 1 2 2 Hottest 50 | 20 40 50 Shots Fired 209 | 7 112 90 Gun 208 | 7 112 89 Cannon . | . . . Launcher 1 | . . 1 Special . | . . . Kinetic 208 | 7 112 89 Thermal . | . . . Explosive 1 | . . 1 Electromagnetic . | . . . Robot Hit Streak 11 | 5 11 8 Robot Miss Streak 5 | 2 5 4 Penetration Max . | . . . Secondary Targets 1 | . 1 . Max Gunslinging Chain 1 | . 1 . Shots Hit Robots 127 | 5 67 55 Core Hits 49 | 3 28 18 Critical Hits 1 | . 1 . Critical Kills 1 | . 1 . Critical Parts Destroyed . | . . . Melee Attacks . | . . . Impact . | . . . Slashing . | . . . Piercing . | . . . Sneak Attacks . | . . . Combat Hostiles . | . . . Follow-up Attacks . | . . . Damage Inflicted 1638 | 58 803 777 Guns 1496 | 58 803 635 Cannons . | . . . Explosions 142 | . . 142 Melee . | . . . Ramming . | . . . Kinetic 1496 | 58 803 635 Thermal . | . . . Explosive 142 | . . 142 Electromagnetic . | . . . Impact . | . . . Slashing . | . . . Piercing . | . . . Highest Corruption . | . . . Average Corruption . | . . . Corruption Purged . | . . . Overload Shots . | . . . Overflow Damage . | . . . Projectiles . | . . . Explosions . | . . . Melee . | . . . Knockbacks . | . . . Impact . | . . . Kinetic . | . . . Secondary . | . . . Self-Inflicted Damage . | . . . Shots . | . . . Rammed . | . . . Targets Rammed . | . . . Kicked . | . . . Crushed . | . . . Highest Temperature 65 | . 8 65 Average Temperature 18 | . 2 23 Received Heat Transfer 531 | . 189 342 Siege Activations . | . . . Robots Corrupted . | . . . Combat Hostiles . | . . . Parts Fried . | . . . Impact Corruptions . | . . . Robots Melted . | . . . Combat Hostiles . | . . . Parts Melted . | . . . Heat Transferred . | . . . Parts Sabotaged . | . . . Parts Stolen . | . . . Parts Stripped . | . . . Power Chain Reactions . | . . . Missiles Intercepted . | . . . Alert | -11 -10 -10 ------- Run | Scr Mat Min Peak Influence 353 | 10 325 353 Average Influence 200 | 5 204 214 Maximum Alert Level 1 | . 1 1 Low Security (%) 36 | 100 34 33 Level 1 63 | . 65 66 Level 2 . | . . . Level 3 . | . . . Level 4 . | . . . Level 5 . | . . . High Security . | . . . Max Security . | . . . Squads Dispatched 3 | . 3 . Investigation 2 | . 2 . Extermination . | . . . Reinforcement 1 | . 1 . Assault . | . . . Garrison . | . . . Intercept . | . . . Construction Impeded . | . . . Haulers Reinforced . | . . . Stealth | -11 -10 -10 --------- Run | Scr Mat Min Distress Signals 2 | . 2 . Communications Jammed . | . . . Distress Signals . | . . . Times Spotted 33 | . 21 12 Peak Tracking Total 3 | . 3 3 Tactical Retreats 3 | . 2 1 Traps | -11 -10 -10 ------- Run | Scr Mat Min Traps Triggered 3 | . 3 . Indirectly . | . . . Trap Hack Attempts . | . . . Triggered . | . . . Disarmed . | . . . Reprogrammed . | . . . Reused . | . . . Traps Extracted . | . . . Installed . | . . . Triggered . | . . . Machines | -11 -10 -10 ---------- Run | Scr Mat Min Machines Disabled . | . . . Max in Single Turn . | . . . Machines Sabotaged . | . . . Garrisons Compromised . | . . . Overloaded Fab Kills . | . . . Fab Network Shutdowns . | . . . Hacking | -11 -10 -10 --------- Run | Scr Mat Min Machines Accessed 2 | . 2 . Terminals 1 | . 1 . Fabricators . | . . . Repair Stations . | . . . Recycling Units 1 | . 1 . Scanalyzers . | . . . Garrison Access . | . . . Total Hacks 3 | . 3 . Successful 3 | . 3 . Failed . | . . . Catastrophic . | . . . Database Lockouts . | . . . Manual 2 | . 2 . Terminals 2 | . 2 . Fabricators . | . . . Repair Stations . | . . . Recycling Units 1 | . 1 . Scanalyzers . | . . . Garrison Access . | . . . Terminal Hacks 1 | . 1 . Branch Access Points 1 | . 1 . Fabricator Hacks . | . . . Repair Station Hacks . | . . . Recycling Unit Hacks . | . . . Scanalyzer . | . . . Garrison Access Hacks . | . . . Unauthorized Hacks 4 | . 4 . Terminals 1 | . 1 . Botnet 1 | . 1 . Fabricators . | . . . Repair Stations . | . . . Recycling Units 1 | . 1 . Tunnel 1 | . 1 . Scanalyzers . | . . . Garrison Access . | . . . Data Cores Recovered . | . . . Used . | . . . Hacking Detections 1 | . 1 . Full Trace Events . | . . . Feedback Events . | . . . Feedback Blocked . | . . . Robot Schematics Acquired . | . . . Robots Built . | . . . Matter . | . . . Time . | . . . Total Robot Build Rating . | . . . Part Schematics Acquired . | . . . Parts Built . | . . . Matter . | . . . Time . | . . . Total Part Build Rating . | . . . Parts Repaired . | . . . Time . | . . . Parts Recycled . | . . . Recycled Matter . | . . . Retrieved Matter . | . . . Retrieved Components . | . . . Parts Scanalyzed . | . . . Part Schematics Acquired . | . . . Parts Damaged . | . . . Bothacking | -11 -10 -10 ------------ Run | Scr Mat Min Used RIF Installer . | . . . Robots Hacked . | . . . Non-combat . | . . . Combat . | . . . Robot Hacks Applied . | . . . Relay Couplers Released . | . . . Robots Rewired . | . . . Allies Hacked . | . . . Hacks Repelled . | . . . Allies | -11 -10 -10 -------- Run | Scr Mat Min Total Allies . | . . . Largest Group . | . . . Highest-Rated Group . | . . . Highest-Rated Ally . | . . . Total Orders . | . . . Ally Attacks . | . . . Total Damage . | . . . Kills . | . . . Allies Corrupted . | . . . Allies Melted . | . . . Intel | -11 -10 -10 ------- Run | Scr Mat Min Robot Analysis Total . | . . . Derelict Logs Recovered 1 | . . 1 Drone Launches . | . . . Drone Recoveries . | . . . Exploration | -11 -10 -10 ------------- Run | Scr Mat Min Turns Passed 784 | 30 487 267 Spaces Moved 954 | 14 675 265 Core 57 | 6 51 . Treads . | . . . Legs 8 | 8 . . Wheels . | . . . Hover . | . . . Flight 889 | . 624 265 Fastest Speed 37 | 50 37 37 Average Speed 39 | 90 40 37 Slowest Speed 120 | 120 50 37 Overloaded Moves . | . . . Propulsion Burnouts . | . . . Robots Hopped 11 | . 6 5 Cave-ins Triggered . | . . . Exploration Rate (%) 45 | 3 66 68 Regions Visited 2 Branch Regions 1 Pre-discovered Areas 2 | . 1 1 Known Exits Taken 1 | . 1 . Unknown Exits Taken 1 | 1 . . Scrap Searched . | . . . Spaces Dug . | . . . Terrain Destroyed 3 | . . 3 Melee . | . . . Projectile . | . . . AOE 3 | . . 3 Actions | -11 -10 -10 --------- Run | Scr Mat Min Total 1133 | 23 771 339 Wait 31 | . 18 13 Move 930 | 13 662 255 Hop 11 | . 6 5 Pick Up 3 | . 3 . Fast Attach 10 | 2 8 . Attach 1 | . 1 . Detach . | . . . Swap 11 | . 7 4 Drop 11 | 1 8 2 Fire 108 | 7 56 45 Melee . | . . . Ram . | . . . Kick . | . . . Crush . | . . . Escape Stasis . | . . . Rewire . | . . . Trap . | . . . Miscellaneous 17 | . 2 15 Route ------- -11/Scrapyard -10/Materials (discovered 2 exits: *Mat / *Min) -10/Mines (discovered 2 exits: *Mat x2) History --------- Turn | Location | Event 1 | -11/Scrapyard | Discovered new exit (range 3) 27 | -11/Scrapyard | Upgraded with Utility slot (x1) 27 | -11/Scrapyard | Upgraded with Weapon slot (x1) 31 | -11/Scrapyard | Entered Materials 204 | -10/Materials | Discovered new exit (range 13) 225 | -10/Materials | Identified exit to Mines 300 | -10/Materials | Build established: Mutant 370 | -10/Materials | Discovered new exit (range 5) 442 | -10/Materials | Reached level 2 451 | -10/Materials | Upgraded with Propulsion slot (x1) 518 | -10/Materials | Entered Mines 520 | -10/Mines | Core integrity fell below 50% 532 | -10/Mines | Discovered new exit (range 15) 547 | -10/Mines | Core integrity fell below 20% 641 | -10/Mines | Discovered new exit (range 4) 644 | -10/Mines | Identified exit to Materials 725 | -10/Mines | Reached level 3 740 | -10/Mines | Build established: Scavenger-Mutant 785 | -10/Mines | Destroyed by exploding Plasma Injector Last Messages --------------- 00696_ R-06 Scavenger collects Aluminum Leg. 00708_ Destroyed Sml. Laser. 00720_ Acquired 63 matter. 00725_ Reached level 3. 00725_ S-10 Pest destroyed. 00737_ Used Protomatter to restore core integrity (+57, depleted) 00738_ S-10 Pest destroyed. 00740_ R-06 Scavenger collects Lgt. Assault Rifle. 00746_ Used Protomatter to restore core integrity (+51, depleted) 00747_ Dropped Flight Unit. 00757_ K-01 Serf collects debris. 00760_ K-01 Serf cleans the Plasma Injector. 00764_ G-34 Mercenary destroyed. 00767_ Acquired 65 matter. 00772_ K-01 Serf cleans the Plasma Injector. 00785_ Plasma Injector explodes. 00785_ G-47 Trooper destroyed. 00785_ Plasma Injector explodes. 00785_ K-01 Serf destroyed. 00785_ Plasma Injector explodes. Map ----- +----------------------------------------------------+ | ##??????????????????????????? | | ##???????????????????????????? | | # ##?????#????#?????????????????? | | # ##?????????????????????????????? | | #####?????? ???????????????????????? | | ??????????? ???????????????????????? | | ????#??##?? ???????????????????????? | | ??##??????? ???????????????????????? | | ?????????## #??????????????????????? | | #????????? ??????????????????????? | | ?????????? ?????????????????#????? | | #???? ???? ??#????????????????#??? | | ???????#?? ??????????????#???????? | | #????????? %=???###????????????????? | | ####??????#*#??? ????????????????? | | ##?????# #??? ???????????????? | | ####### ##?? ????###???????#? | | ?? #????????? | | ####### ##??# #?????# #????????? | | #####?????# #???# ####### ########?? | | ??????????#=#???# ## ?? | | ???#?????##=#???# ## """ ?? | | #######???# ##### ## """ ?? | | #???# """ #? | | "" #???# ######## % %= #? | | """ ##### #??????# =@ """ #? | | " " #?#?#??# = """ #? | | ##### #??????# """ ?? | | """ #???# #??????# ?? | | """ #???# #??????# """ #? | | """ #???# #??????# """ #? | | #???# #???#??# """??? | | """ #?#?# ??????# ?#? | | """ #???###??????# """ """ """??? | | """ #????????????# """ """ """??? | | #????????????# """ """ "????? | | #######????????#???# ?? ??? ????? | | ???????????????????# ?? ???? ????? | | ???????????????????# ?? ??? ? ???? | | #?????????????????#?###??#??#??????? | | ??#????????????????????????????????? | | ???????#???????????????????????????? | | ???????????????????????????????????? | | | | | | | | | | | | | | | +----------------------------------------------------+ Best States ------------- Heat Dissipation 25 Energy Generation 14 Energy Capacity 160 Matter Stores 300 Matter Capacity 300 Sight Range 16 Terrain Scan Range 16 Terrain Scan Density 10 Evasion (%) 62 Offensive Hacking 10 Defensive Hacking 5 Item Schematics ----------------- None Robot Schematics ------------------ None Fabricated ------------ Nothing Alien Tech Used ----------------- None Achievements -------------- None Challenges ------------ None RPGLIKE | -11 -10 -10 --------- Run | Scr Mat Min Levels Raised 2 | . 1 1 XP Earned 6420 | 3000 1720 1700 XP Spent 3350 | 2850 500 . Upgrades 10 | 9 1 . Propulsion Slot 1 | . 1 . Utility Slot 1 | 1 . . Weapon Slot 1 | 1 . . Mass Support 2 | 2 . . Inventory Capacity 2 | 2 . . Hack Attack % 2 | 2 . . Hack Defense % 1 | 1 . . Protomatter Created 114 | . 15 99 Integrity Restored 321 | . 24 297 Core 315 | . 18 297 Parts 6 | . 6 . Protomatter Decayed 6 | . 6 . Game ------ Seed GyrokineticFactoryAmplifier Manual? 0 Play Time 00:11:08 Cumulative 198.0 hours Start 2019.12.18 @ 22:53:46 End 2019.12.18 @ 23:02:43 Sessions 1 Manual Loads 0 Difficulty Rogue Special Mode Winter2019/RPGLIKE Game No. 416 Rogue 416 Adventurer 0 Explorer 0 Win Type - Total 3 Types 3/0/0/0/0/0/0 Lore% 54 Gallery% 61 Achievement% 48 Wizard Run 0 Options --------- ASCII 0 Keyboard 0 Movement Arrows Keybinds 0 Fullscreen 1 Font 18/SmallcapsGlow Map View 76x50 Tactical HUD 1 Map Filters NONE Filters NONE Steam 1 RUN: 7328c00f-a7da-473f-925e-23f21fdcea2c